bitfinex/quotes_BTCUSD_20241203
["timestamp","ask_amount","ask_price","bid_price","bid_amount"]
[1733267039396,0.10471259,96049.0,96024.0,0.15]
[1733267040230,0.10571259,96049.0,96024.0,0.15]
[1733267040431,0.0829,96050.0,96030.0,0.1248708]
[1733267041028,0.0829,96046.0,96024.0,0.18645313]
[1733267041229,0.0469,96047.0,96020.0,0.02744025]
[1733267041230,0.0829,96042.0,96020.0,0.02744025]
[1733267041436,0.10471259,96041.0,96020.0,0.02744025]
[1733267041638,0.10471259,96041.0,96018.0,0.18645313]
[1733267041639,0.10471259,96041.0,96018.0,0.15]
[1733267041861,0.10471259,96041.0,96016.0,0.18645313]
[1733267041862,0.10471259,96041.0,96011.0,0.054]
[1733267042065,0.10471259,96041.0,96013.0,0.054]
[1733267042267,0.10471259,96041.0,96013.0,0.262305]
[1733267042833,0.001,96041.0,96020.0,0.1248708]
[1733267043417,0.002,96041.0,96022.0,0.208285]
[1733267044219,0.0829,96042.0,96023.0,0.208283]
[1733267044424,0.002,96041.0,96024.0,0.208281]
[1733267044638,0.2,96058.0,96024.0,0.208281]
[1733267044639,0.0831,96050.0,96037.0,0.208251]
[1733267044851,0.0471,96056.0,96040.0,0.1248708]
[1733267045061,0.0471,96066.0,96041.0,0.10471259]
[1733267045265,0.0471,96066.0,96050.0,0.1248708]
[1733267045266,0.1302,96066.0,96050.0,0.1248708]
[1733267045525,0.20813,96094.0,96050.0,0.1248708]
[1733267045526,0.0831,96074.0,96051.0,0.15]
[1733267045712,0.0831,96074.0,96060.0,0.1248708]
[1733267045915,0.0831,96074.0,96056.0,0.208211]
[1733267046119,0.0831,96074.0,96057.0,0.15]
[1733267047146,0.0831,96074.0,96055.0,0.208214]
[1733267047356,0.0831,96074.0,96054.0,0.15]
[1733267047558,0.0831,96074.0,96055.0,0.208214]
[1733267047762,0.0841,96074.0,96054.0,0.15]
[1733267047977,0.0831,96074.0,96054.0,0.15]
[1733267048407,0.0798,96072.0,96055.0,0.003]
[1733267048643,0.15171259,96071.0,96055.0,0.003]
[1733267048859,0.0799,96070.0,96042.0,0.23306608]
[1733267049074,0.10471259,96069.0,96040.0,0.23365395]
[1733267049304,0.0784,96068.0,96040.0,0.26085797]
[1733267049522,0.10471259,96067.0,96040.0,0.02779189]
[1733267050180,0.10471259,96067.0,96041.0,0.208244]
[1733267050421,0.0784,96068.0,96054.0,0.005]
[1733267050661,0.001,96067.0,96054.0,0.005]
[1733267050879,0.001,96067.0,96054.0,0.054]
[1733267051111,0.001,96067.0,96058.0,0.15]
[1733267051314,0.0784,96068.0,96058.0,0.15]
[1733267051758,0.001,96067.0,96058.0,0.15]
[1733267052032,0.002,96067.0,96058.0,0.15]
[1733267052241,0.002,96067.0,96059.0,0.23306608]
[1733267052449,0.002,96067.0,96058.0,0.38306608]
[1733267052656,0.002,96067.0,96059.0,0.23306608]
[1733267052865,0.001,96067.0,96060.0,0.15]
[1733267053305,0.002,96067.0,96060.0,0.38306608]
[1733267053534,0.001,96067.0,96060.0,0.38306608]
[1733267053780,0.002,96067.0,96060.0,0.38306608]
[1733267054006,0.001,96067.0,96060.0,0.15]
[1733267054239,0.001,96067.0,96060.0,0.38306608]
[1733267054463,0.002,96067.0,96060.0,0.38506608]
[1733267054659,0.001,96067.0,96060.0,0.38506608]
[1733267055109,0.002,96067.0,96062.0,0.15]
[1733267055323,0.002,96067.0,96064.0,0.15]
[1733267055735,0.002,96067.0,96064.0,0.38306608]
[1733267055957,0.002,96067.0,96064.0,0.15]
[1733267056175,0.001,96067.0,96061.0,0.23306608]
[1733267056381,0.001,96067.0,96060.0,0.007]
[1733267056382,0.001,96067.0,96060.0,0.24006608]
[1733267056597,0.001,96067.0,96064.0,0.009]
[1733267057070,0.1269,96065.0,96064.0,0.009]
[1733267057253,0.1269,96065.0,96062.0,0.004]
[1733267057254,0.15411259,96065.0,96062.0,0.004]
[1733267057454,0.0775,96063.0,96049.0,0.23306608]
[1733267057674,0.31291059,96062.0,96060.0,0.009]
[1733267057880,0.0775,96061.0,96042.0,0.23306608]
[1733267058094,0.0775,96061.0,96040.0,0.00058787]
[1733267058095,0.0775,96061.0,96043.0,0.23306608]
[1733267058354,0.0775,96061.0,96044.0,0.23306608]
[1733267058623,0.0775,96061.0,96040.0,0.12545867]
[1733267058624,0.0775,96061.0,96049.0,0.004]
[1733267059159,0.06003356,96061.0,96051.0,0.15]
[1733267059384,0.06003356,96061.0,96053.0,0.15]
[1733267059689,0.0494,96065.0,96057.0,0.15]
[1733267059873,0.0494,96065.0,96061.0,0.15]
[1733267059874,0.001,96062.0,96061.0,0.15]
[1733267060130,0.0494,96065.0,96061.0,0.15]
[1733267060401,0.0494,96065.0,96062.0,0.23306608]
[1733267060625,0.0494,96083.0,96062.0,0.28706608]
[1733267060864,0.0494,96083.0,96066.0,0.23306608]
[1733267061099,0.0494,96083.0,96067.0,0.23306608]
[1733267061336,0.0494,96083.0,96066.0,0.23306608]
[1733267061803,0.0504,96083.0,96066.0,0.23306608]
[1733267062062,0.0504,96083.0,96065.0,0.23306608]
[1733267062322,0.0504,96083.0,96064.0,0.23306608]
[1733267062323,0.18221259,96082.0,96064.0,0.23306608]
[1733267062547,0.0785,96065.0,96064.0,0.23306608]
[1733267062774,0.0775,96065.0,96061.0,0.38306608]
[1733267063005,0.0474,96064.0,96061.0,0.38306608]
[1733267063279,0.0474,96064.0,96054.0,0.054]
[1733267063280,0.0474,96064.0,96059.0,0.23306608]
[1733267063519,0.0474,96064.0,96060.0,0.15]
[1733267063746,0.0474,96064.0,96053.0,0.23306608]
[1733267064012,0.0474,96064.0,96054.0,0.15]
[1733267064244,0.0494,96064.0,96061.0,0.015]
[1733267064721,0.0484,96064.0,96061.0,0.009]
[1733267064959,0.0494,96064.0,96061.0,0.009]
[1733267065413,0.0484,96064.0,96053.0,0.006]
[1733267065653,0.10471259,96063.0,96053.0,0.006]
[1733267065887,0.0753,96058.0,96053.0,0.015]
[1733267066119,0.0753,96058.0,96035.0,0.27963387]
[1733267066120,0.18001259,96058.0,96045.0,0.23306608]
[1733267066343,0.18001259,96058.0,96035.0,0.27963387]
[1733267066344,0.16364923,96058.0,96044.0,0.23306608]
[1733267067010,0.16364923,96058.0,96053.0,0.009]
[1733267067293,0.16464923,96058.0,96053.0,0.009]
[1733267067741,0.16364923,96058.0,96053.0,0.009]
[1733267068012,0.05893664,96058.0,96043.0,0.15]
[1733267068262,0.05893664,96058.0,96053.0,0.002]
[1733267069266,0.05993664,96058.0,96053.0,0.002]
[1733267069525,0.05893664,96058.0,96046.0,0.02639911]
[1733267069763,0.05993664,96058.0,96053.0,0.008]
[1733267069990,0.05993664,96058.0,96053.0,0.011]
[1733267070483,0.05993664,96058.0,96053.0,0.008]
[1733267070720,0.05993664,96058.0,96040.0,0.05458787]
[1733267070721,0.05993664,96058.0,96046.0,0.004]
[1733267071183,0.05993664,96058.0,96038.0,0.23533513]
[1733267071429,0.06052488,96058.0,96053.0,0.004]
[1733267072663,0.05952488,96058.0,96053.0,0.004]
[1733267072906,0.05952488,96058.0,96042.0,0.208241]
[1733267073130,0.0474,96064.0,96049.0,0.15]
[1733267073373,0.0468,96074.0,96052.0,0.15]
[1733267073824,0.0468,96074.0,96050.0,0.15871259]
[1733267073825,0.0468,96074.0,96054.0,0.15]
[1733267074079,0.02978099,96073.0,96054.0,0.15]
[1733267074299,0.001,96058.0,96054.0,0.15]
[1733267074516,0.0752,96077.0,96054.0,0.15]
[1733267074730,0.0017264,96065.0,96053.0,0.0008632]
[1733267074961,0.07158754,96077.0,96053.0,0.0008632]
[1733267075828,0.10471259,96076.0,96050.0,0.1248708]
[1733267076039,0.10471259,96076.0,96055.0,0.0545]
[1733267076494,0.10471259,96076.0,96054.0,0.004]
[1733267076743,0.10471259,96076.0,96050.0,0.1248708]
[1733267076956,0.10471259,96076.0,96053.0,0.001]
[1733267077170,0.10471259,96076.0,96050.0,0.004]
[1733267077433,0.10571259,96076.0,96055.0,0.001]
[1733267077651,0.0451,96075.0,96047.0,0.23475446]
[1733267077846,0.14981259,96075.0,96054.0,0.004]
[1733267078272,0.0451,96075.0,96056.0,0.0545]
[1733267078693,0.0451,96075.0,96054.0,0.23738717]
[1733267078898,0.0451,96075.0,96054.0,0.23740074]
[1733267079112,0.0451,96075.0,96054.0,0.15]
[1733267079528,0.0461,96075.0,96056.0,0.001]
[1733267079735,0.10471259,96074.0,96056.0,0.001]
[1733267079944,0.0823,96073.0,96056.0,0.001]
[1733267080153,0.10471259,96072.0,96056.0,0.001]
[1733267080364,0.10471259,96072.0,96053.0,0.054]
[1733267080566,0.0823,96073.0,96054.0,0.006]
[1733267080791,0.0823,96073.0,96060.0,0.1248708]
[1733267081214,0.0823,96073.0,96045.0,1.316]
[1733267081215,0.0823,96073.0,96045.0,1.3028038]
[1733267081426,0.0823,96073.0,96055.0,0.208214]
[1733267081644,0.0823,96073.0,96049.0,0.15]
[1733267081848,0.0823,96073.0,96052.0,0.20822]
[1733267082052,0.0833,96073.0,96056.0,0.001]
[1733267082516,0.0823,96073.0,96056.0,0.005]
[1733267082723,0.0833,96073.0,96056.0,0.005]
[1733267082984,0.0823,96073.0,96060.0,0.1248708]
[1733267083200,0.0823,96073.0,96056.0,0.006]
[1733267083422,0.0833,96073.0,96056.0,0.006]
[1733267083873,0.0833,96073.0,96057.0,0.208209]
[1733267084091,0.0833,96073.0,96058.0,0.15]
[1733267085006,0.07251441,96073.0,96068.0,0.208185]
[1733267085239,0.0483264,96086.0,96069.0,0.15]
[1733267085460,0.001,96073.0,96069.0,0.15]
[1733267086127,0.001,96073.0,96060.0,0.15]
[1733267086566,0.001,96073.0,96066.0,0.15]
[1733267086782,0.0483264,96086.0,96066.0,0.15]
[1733267087002,0.04850278,96086.0,96066.0,0.3834709]
[1733267087226,0.04850278,96086.0,96069.0,0.001]
[1733267087227,0.0017268,96073.0,96069.0,0.001]
[1733267087913,0.0017268,96073.0,96050.0,0.1248708]
[1733267088148,0.0017268,96073.0,96056.0,0.02639401]
[1733267088149,0.075,96072.0,96056.0,0.02639401]
[1733267088365,0.0648991,96072.0,96059.0,0.208203]
[1733267088585,0.0648991,96072.0,96060.0,0.004]
[1733267088818,0.0648991,96072.0,96060.0,0.005]
[1733267089028,0.0648991,96072.0,96060.0,0.004]
[1733267089249,0.0648991,96072.0,96057.0,0.208209]
[1733267089481,0.408131,96094.0,96057.0,0.208209]
[1733267089694,0.10471259,96093.0,96058.0,0.03230525]
[1733267089909,0.09938429,96093.0,96058.0,0.18230525]
[1733267090133,0.09938429,96093.0,96054.0,0.43231825]
[1733267090134,0.09938429,96093.0,96060.0,0.1248708]
[1733267090364,0.09938429,96093.0,96068.0,0.208183]
[1733267090365,0.29997278,96093.0,96068.0,0.208183]
[1733267090579,0.001,96072.0,96066.0,0.208189]
[1733267091867,0.29997278,96093.0,96062.0,0.208198]
[1733267092102,0.1307,96092.0,96052.0,0.25]
[1733267092341,0.10471259,96091.0,96063.0,0.208196]
[1733267092759,0.001,96072.0,96066.0,0.009]
[1733267092951,0.10471259,96091.0,96063.0,0.208196]
[1733267093848,0.10471259,96091.0,96063.0,0.210196]
[1733267094071,0.10471259,96091.0,96063.0,0.002]
[1733267094282,0.083,96090.0,96063.0,0.002]
[1733267094520,0.10471259,96089.0,96063.0,0.210195]
[1733267094744,0.10471259,96089.0,96063.0,0.01]
[1733267094962,0.10471259,96089.0,96060.0,0.1248708]
[1733267095134,0.10454124,96089.0,96061.0,0.208201]
[1733267095365,0.083,96088.0,96063.0,0.009]
[1733267095555,0.083,96086.0,96063.0,0.003]
[1733267095756,0.10471259,96085.0,96063.0,0.003]
[1733267095964,0.10471259,96085.0,96063.0,0.009]
[1733267096122,0.083,96084.0,96061.0,0.003]
[1733267096338,0.083,96082.0,96061.0,0.003]
[1733267096545,0.10471259,96081.0,96063.0,0.009]
[1733267096969,0.1307,96080.0,96063.0,0.013]
[1733267097185,0.083,96078.0,96063.0,0.013]
[1733267097389,0.10471259,96077.0,96063.0,0.013]
[1733267097811,0.10471259,96077.0,96063.0,0.004]
[1733267098026,0.10471259,96077.0,96063.0,0.03338668]
[1733267098238,0.10471259,96077.0,96054.0,0.15]
[1733267098461,0.10471259,96077.0,96063.0,0.004]
[1733267098683,0.10571259,96077.0,96063.0,0.007]
[1733267098914,0.10571259,96077.0,96063.0,0.003]
[1733267099374,0.10671259,96077.0,96063.0,0.007]
[1733267101969,0.083,96078.0,96063.0,0.007]
[1733267102197,0.07230481,96078.0,96068.0,0.15]
[1733267103129,0.07230481,96078.0,96068.0,0.358185]
[1733267103370,0.07330481,96078.0,96068.0,0.15]
[1733267103581,0.07230481,96078.0,96065.0,0.15]
[1733267104233,0.07330481,96078.0,96065.0,0.15]
[1733267104472,0.2098408,96101.0,96067.0,0.15]
[1733267104740,0.10471259,96100.0,96069.0,0.15]
[1733267104963,0.10471259,96100.0,96081.0,0.15]
[1733267105184,0.10471259,96100.0,96086.0,0.15]
[1733267105437,0.0017258,96101.0,96087.0,0.208144]
[1733267105665,0.0017258,96101.0,96091.0,0.15]
[1733267106163,0.208012,96148.0,96090.0,0.1248708]
[1733267106164,0.05946024,96107.0,96097.0,0.43007242]
[1733267106404,0.05946024,96107.0,96094.0,0.25]
[1733267106405,0.02535844,96107.0,96103.0,0.15]
[1733267107350,0.02535844,96107.0,96099.0,0.15]
[1733267107591,0.02535844,96107.0,96101.0,0.15]
[1733267107824,0.02635844,96107.0,96103.0,0.009]
[1733267108088,0.02635844,96107.0,96103.0,0.00623996]
[1733267108325,0.02535844,96107.0,96101.0,0.15]
[1733267108564,0.02635844,96107.0,96103.0,0.006]
[1733267108796,0.02735844,96107.0,96103.0,0.006]
[1733267109043,0.02635844,96107.0,96103.0,0.006]
[1733267109304,0.02535844,96107.0,96100.0,0.15]
[1733267109513,0.02535844,96107.0,96101.0,0.006]
[1733267109765,0.02635844,96107.0,96101.0,0.006]
[1733267110434,0.02735844,96107.0,96103.0,0.009]
[1733267110680,0.02735844,96107.0,96101.0,0.006]
[1733267110887,0.02735844,96107.0,96101.0,0.009]
[1733267111129,0.13007103,96107.0,96095.0,0.15]
[1733267111356,0.23271259,96106.0,96100.0,0.007]
[1733267111572,0.0817,96105.0,96103.0,0.009]
[1733267111781,0.10471259,96104.0,96090.0,0.15]
[1733267112206,0.10471259,96104.0,96075.0,0.2]
[1733267112464,0.0772,96103.0,96077.0,0.00058849]
[1733267112687,0.0799,96101.0,96077.0,0.00058849]
[1733267112908,0.1285,96099.0,96090.0,0.005]
[1733267113194,0.208136,96091.0,96090.0,0.005]
[1733267113420,0.18461259,96091.0,96090.0,0.005]
[1733267113867,0.39274859,96091.0,96090.0,0.005]
[1733267114098,0.39274859,96091.0,96077.0,0.00058849]
[1733267114323,0.288036,96091.0,96090.0,0.008]
[1733267114542,0.288036,96091.0,96077.0,0.00058849]
[1733267114543,0.208137,96091.0,96077.0,0.00358849]
[1733267114762,0.0826,96090.0,96077.0,0.00358849]
[1733267115010,0.0826,96090.0,96077.0,0.00058849]
[1733267115218,0.0826,96090.0,96077.0,0.00458849]
[1733267115673,0.0826,96090.0,96077.0,0.00058849]
[1733267116100,0.10471259,96089.0,96077.0,0.00258849]
[1733267116545,0.10471259,96089.0,96077.0,0.01058849]
[1733267116999,0.208142,96088.0,96060.0,0.12474137]
[1733267117217,0.208146,96086.0,96077.0,0.007]
[1733267117433,0.10471259,96085.0,96077.0,0.007]
[1733267117650,0.10471259,96085.0,96077.0,0.01]
[1733267118073,0.10471259,96085.0,96055.0,0.208211]
[1733267118323,0.10471259,96085.0,96077.0,0.009]
[1733267118550,0.20816,96080.0,96077.0,0.009]
[1733267118789,0.17991259,96079.0,96077.0,0.009]
[1733267119003,0.283364,96078.0,96077.0,0.009]
[1733267119223,0.38807659,96078.0,96077.0,0.009]
[1733267119437,0.38807659,96078.0,96044.0,0.15]
[1733267119658,0.253953,96084.0,96044.0,0.15]
[1733267119659,0.0819,96073.0,96044.0,0.15]
[1733267119885,0.10471259,96072.0,96044.0,0.02639149]
[1733267120098,0.10471259,96072.0,96041.0,0.15]
[1733267120963,0.208179,96071.0,96044.0,0.008]
[1733267121195,0.10471259,96070.0,96040.0,0.152228]
[1733267121415,0.208183,96069.0,96040.0,0.152228]
[1733267121638,0.001,96072.0,96041.0,0.01]
[1733267121639,0.10471259,96068.0,96041.0,0.01]
[1733267122133,0.1214,96067.0,96041.0,0.009]
[1733267122360,0.208192,96065.0,96041.0,0.009]
[1733267122578,0.208196,96063.0,96041.0,0.009]
[1733267122785,0.10471259,96062.0,96041.0,0.009]
[1733267123451,0.10471259,96062.0,96040.0,0.02848663]
[1733267123659,0.10471259,96062.0,96044.0,0.006]
[1733267123880,0.10471259,96062.0,96041.0,0.000863]
[1733267124110,0.10571259,96062.0,96041.0,0.006863]
[1733267124363,0.077,96056.0,96041.0,0.006863]
[1733267124589,0.10471259,96055.0,96041.0,0.003863]
[1733267124805,0.10471259,96055.0,96044.0,0.004]
[1733267125721,0.10530072,96055.0,96044.0,0.004]
[1733267125972,0.10530072,96055.0,96044.0,0.007]
[1733267126204,0.10630072,96055.0,96044.0,0.007]
[1733267126440,0.10630072,96055.0,96044.0,0.157]
[1733267126685,0.10630072,96055.0,96044.0,0.153]
[1733267126893,0.10730072,96055.0,96044.0,0.159]
[1733267127115,0.10730072,96055.0,96044.0,0.009]
[1733267127116,0.25860143,96045.0,96044.0,0.009]
[1733267127367,0.36331402,96045.0,96044.0,0.009]
[1733267128108,0.36331402,96045.0,96044.0,0.006]
[1733267128338,0.36431402,96045.0,96044.0,0.009]
[1733267128618,0.36431402,96045.0,96044.0,0.003]
[1733267130055,0.36531402,96045.0,96044.0,0.008]
[1733267130547,0.22881259,96045.0,96044.0,0.008]
[1733267130805,0.36531402,96045.0,96044.0,0.008]
[1733267131051,0.18261259,96045.0,96044.0,0.008]
[1733267131759,0.18261259,96045.0,96044.0,0.035087]
[1733267131976,0.18261259,96045.0,96044.0,0.008]
[1733267132846,0.10671259,96045.0,96044.0,0.008]
[1733267133070,0.002,96045.0,96044.0,0.008]
[1733267135919,0.10671259,96045.0,96044.0,0.008]
[1733267136170,0.10671259,96045.0,96044.0,0.0088633]
[1733267137499,0.002,96045.0,96044.0,0.0088633]
[1733267137708,0.0806,96052.0,96044.0,0.0088633]
[1733267137933,0.10471259,96051.0,96044.0,0.0088633]
[1733267138615,0.10471259,96051.0,96044.0,0.0058633]
[1733267139034,0.10471259,96051.0,96044.0,0.0088633]
[1733267139240,0.10471259,96051.0,96044.0,0.0038633]
[1733267139446,0.10471259,96051.0,96044.0,0.0088633]
[1733267139447,0.10571259,96051.0,96044.0,0.0088633]
[1733267140300,0.10571259,96051.0,96044.0,0.0058633]
[1733267140513,0.10571259,96051.0,96044.0,0.0088633]
[1733267142091,0.001,96051.0,96044.0,0.0088633]
[1733267142562,0.00058813,96055.0,96050.0,0.15]
[1733267143006,0.00058813,96055.0,96052.0,0.15]
[1733267143250,0.00058813,96055.0,96052.0,0.2298]
[1733267143497,0.00058813,96055.0,96054.0,0.15]
[1733267143735,0.00058813,96055.0,96052.0,0.15]
[1733267144222,0.00158813,96055.0,96052.0,0.155]
[1733267144452,0.00158813,96055.0,96052.0,0.17670669]
[1733267144675,0.00158813,96055.0,96054.0,0.005]
[1733267144676,0.00358813,96055.0,96054.0,0.005]
[1733267145182,0.00258813,96055.0,96054.0,0.005]
[1733267145409,0.00358813,96055.0,96054.0,0.005]
[1733267145899,0.00158813,96055.0,96052.0,0.03070669]
[1733267146112,0.00258813,96055.0,96052.0,0.03970669]
[1733267146558,0.00158813,96055.0,96052.0,0.03570669]
[1733267147017,0.00158813,96055.0,96054.0,0.007]
[1733267147249,0.00158813,96055.0,96054.0,0.016]
[1733267147250,0.00258813,96055.0,96054.0,0.016]
[1733267147481,0.00058813,96055.0,96042.0,0.15]
[1733267147728,0.00158813,96055.0,96052.0,0.007]
[1733267147967,0.00431393,96055.0,96052.0,0.016]
[1733267148194,0.00331393,96055.0,96052.0,0.009]
[1733267148407,0.00431393,96055.0,96054.0,0.007]
[1733267149089,0.00331393,96055.0,96054.0,0.007]
[1733267149307,0.00431393,96055.0,96054.0,0.016]
[1733267149762,0.00331393,96055.0,96054.0,0.009]
[1733267149995,0.00431393,96055.0,96054.0,0.03588409]
[1733267150458,0.00331393,96055.0,96054.0,0.03588409]
[1733267150682,0.00431393,96055.0,96054.0,0.0738838]
[1733267152457,0.00431393,96055.0,96054.0,0.04188409]
[1733267153109,0.00431393,96055.0,96054.0,0.0738939]
[1733267153312,0.00431393,96055.0,96054.0,0.04188409]
[1733267153540,0.00431393,96055.0,96054.0,0.07389733]
[1733267153770,0.00431393,96055.0,96054.0,0.04188409]
[1733267153932,0.00431393,96055.0,96054.0,0.0738981]
[1733267155996,0.19102652,96055.0,96054.0,0.015]
[1733267156853,0.19002652,96055.0,96054.0,0.009]
[1733267157061,0.19002652,96055.0,96054.0,0.005]
[1733267157484,0.57632795,96055.0,96054.0,0.014]
[1733267159164,0.57632795,96055.0,96051.0,0.0008629]
[1733267159165,0.13650143,96053.0,96051.0,0.0008629]
[1733267159326,0.39123259,96052.0,96051.0,0.0008629]
[1733267160158,0.52773402,96052.0,96051.0,0.0008629]
[1733267160415,0.72773402,96052.0,96051.0,0.0048629]
[1733267160617,0.72873402,96052.0,96051.0,0.0138629]
[1733267160829,0.72873402,96052.0,96051.0,0.0098629]
[1733267161263,0.72873402,96052.0,96051.0,0.0138629]
[1733267162106,0.72773402,96052.0,96051.0,0.0048629]
[1733267162515,0.72873402,96052.0,96051.0,0.0078629]
[1733267162733,0.72873402,96052.0,96051.0,0.0108629]
[1733267163138,0.72846269,96052.0,96051.0,0.0108629]
[1733267166302,0.32024269,96052.0,96051.0,0.0108629]
[1733267168082,0.61957792,96052.0,96051.0,0.0108629]
[1733267168315,0.62215778,96052.0,96051.0,0.0108629]
[1733267168775,0.52337932,96052.0,96051.0,0.0108629]
[1733267168993,0.52024269,96052.0,96051.0,0.0078629]
[1733267169204,0.18274126,96052.0,96051.0,0.0028629]
[1733267169410,0.31924269,96052.0,96051.0,0.0028629]
[1733267169616,0.32024269,96052.0,96051.0,0.0088629]
[1733267170275,0.32015357,96052.0,96051.0,0.0088629]
[1733267170702,0.32015357,96052.0,96036.0,0.2801807]
[1733267170703,0.18365214,96052.0,96022.0,0.28011385]
[1733267170927,0.18537794,96052.0,96028.0,0.20827]
[1733267171138,0.13650143,96048.0,96028.0,0.20827]
[1733267171347,0.10471259,96047.0,96029.0,0.208268]
[1733267171767,0.10471259,96047.0,96027.0,0.0491]
[1733267172206,0.10471259,96047.0,96030.0,0.13088299]
[1733267172436,0.10471259,96047.0,96030.0,0.12488299]
[1733267172657,0.10571259,96047.0,96030.0,0.13388299]
[1733267173506,0.10571259,96047.0,96037.0,0.12488299]
[1733267173923,0.10571259,96047.0,96033.0,0.15]
[1733267175022,0.0800258,96052.0,96011.0,0.0008636]
[1733267175023,0.18341259,96044.0,96011.0,0.0008636]
[1733267175245,0.13650143,96035.0,96011.0,0.0008636]
[1733267175466,0.2,96039.0,96011.0,0.0008636]
[1733267175467,0.208269,96030.0,96011.0,0.0008636]
[1733267175687,0.208272,96028.0,96011.0,0.0008636]
[1733267175893,0.208276,96026.0,96011.0,0.0008636]
[1733267176098,0.10471259,96025.0,96015.0,0.0268255]
[1733267176351,0.13650143,96022.0,96015.0,0.0268255]
[1733267176562,0.10471259,96021.0,96016.0,0.0018634]
[1733267176770,0.0787,96020.0,96016.0,0.0008634]
[1733267176979,0.10471259,96019.0,96016.0,0.00103978]
[1733267177408,0.10471259,96019.0,96016.0,0.00403978]
[1733267178485,0.10471259,96019.0,96016.0,0.00903978]
[1733267178695,0.10471259,96019.0,96016.0,0.00403978]
[1733267178901,0.10471259,96019.0,96016.0,0.00803978]
[1733267179127,0.10571259,96019.0,96016.0,0.00503978]
[1733267179406,0.31400559,96019.0,96016.0,0.00503978]
[1733267179618,0.52329859,96019.0,96016.0,0.00803978]
[1733267179823,0.31500559,96019.0,96016.0,0.00803978]
[1733267180258,0.52329859,96019.0,96016.0,0.00803978]
[1733267180474,0.31500559,96019.0,96016.0,0.00803978]
[1733267180888,0.52329859,96019.0,96016.0,0.00803978]
[1733267181315,0.52329759,96019.0,96016.0,0.00803978]
[1733267181520,0.52329659,96019.0,96016.0,0.00803978]
[1733267182402,0.31500459,96019.0,96016.0,0.00803978]
[1733267182629,0.208296,96017.0,96016.0,0.00803978]
[1733267182839,0.44951002,96017.0,96016.0,0.00803978]
[1733267183492,0.44951002,96017.0,96016.0,0.00503978]
[1733267183936,0.44951002,96017.0,96016.0,0.00803978]
[1733267183937,0.45051002,96017.0,96016.0,0.00803978]
[1733267184583,0.45051002,96017.0,96016.0,0.00403978]
[1733267184801,0.45151002,96017.0,96016.0,0.00903978]
[1733267186579,0.2083,96015.0,95985.0,0.208364]
[1733267186800,0.10471259,96014.0,96011.0,5.88e-05]
[1733267187034,0.208305,96013.0,96011.0,5.88e-05]
[1733267187257,0.10471259,96012.0,96011.0,5.88e-05]
[1733267187913,0.10471259,96012.0,96011.0,0.0050588]
[1733267188119,0.10471259,96012.0,96011.0,5.88e-05]
[1733267188550,0.10571259,96012.0,96011.0,0.0050588]
[1733267190009,0.10671259,96012.0,96011.0,0.0050588]
[1733267193180,0.10671259,96012.0,96011.0,0.0059219]
[1733267193413,0.18611259,96012.0,96011.0,0.0059219]
[1733267193624,0.23571259,96012.0,96011.0,0.0059219]
[1733267194470,0.67109592,96012.0,96011.0,0.0059219]
[1733267194698,0.67009592,96012.0,96011.0,0.0009219]
[1733267195144,0.67009592,96012.0,96011.0,0.0019219]
[1733267195373,0.66909592,96012.0,96011.0,0.0009219]
[1733267195601,0.66909592,96012.0,96011.0,0.0019219]
[1733267195819,0.57021402,96012.0,96011.0,0.0019219]
[1733267196245,0.58299027,96012.0,96011.0,0.0019219]
[1733267197833,0.58368519,96012.0,96011.0,0.0019219]
[1733267199801,0.73368519,96012.0,96011.0,0.0019219]
[1733267204908,0.73541219,96012.0,96011.0,0.0019219]
[1733267205141,0.74865887,96012.0,96011.0,0.0019219]
[1733267205370,0.74865887,96012.0,96011.0,0.0009219]
[1733267205794,0.74965887,96012.0,96011.0,0.0009219]
[1733267206252,0.74865887,96012.0,96011.0,0.0009219]
[1733267206888,0.74965887,96012.0,96011.0,0.0009219]
[1733267207527,0.73641219,96012.0,96011.0,0.0009219]
[1733267207745,0.72294102,96012.0,96011.0,0.0009219]
[1733267209026,0.73830543,96012.0,96011.0,0.0009219]
[1733267209887,0.73830543,96012.0,96011.0,0.00112108]
[1733267212122,0.72294102,96012.0,96011.0,0.00112108]
[1733267215664,0.82577248,96012.0,96011.0,0.00112108]
[1733267215884,0.84113689,96012.0,96011.0,0.00112108]
[1733267222223,0.84113689,96012.0,95987.0,0.0008635]
[1733267222224,0.62606043,95988.0,95987.0,0.0008635]
[1733267222498,0.88140876,95988.0,95987.0,0.00101683]
[1733267222901,0.98438413,95988.0,95987.0,0.00101683]
[1733267223592,1.00115087,95988.0,95987.0,0.00101683]
[1733267224107,0.99215087,95988.0,95987.0,0.00101683]
[1733267224336,1.00115087,95988.0,95987.0,0.00101683]
[1733267224575,0.99438413,95988.0,95987.0,0.00101683]
[1733267225043,0.99338413,95988.0,95987.0,0.00101683]
[1733267225318,1.00038413,95988.0,95987.0,0.00101683]
[1733267225818,1.04768413,95988.0,95987.0,0.00101683]
[1733267226302,1.07456363,95988.0,95987.0,0.00101683]
[1733267228665,1.27456363,95988.0,95987.0,0.00101683]
[1733267229594,1.26756363,95988.0,95987.0,0.00101683]
[1733267229834,1.25856363,95988.0,95987.0,0.00101683]
[1733267230078,1.26756363,95988.0,95987.0,0.00101683]
[1733267230300,1.25856363,95988.0,95987.0,0.00101683]
[1733267230519,1.26756363,95988.0,95987.0,0.00101683]
[1733267230736,1.27531229,95988.0,95987.0,0.00101683]
[1733267230950,1.26756363,95988.0,95987.0,0.00101683]
[1733267231396,1.27656363,95988.0,95941.0,0.0795]
[1733267231621,1.27656363,95988.0,95944.0,0.00017666]
[1733267231622,0.15655127,95957.0,95944.0,0.00017666]
[1733267231850,0.31314059,95956.0,95944.0,0.00017666]
[1733267232347,0.31314059,95956.0,95930.0,0.11724291]
[1733267232572,0.31314059,95956.0,95930.0,0.11782997]
[1733267233257,0.31314059,95956.0,95908.0,0.208532]